Cogmind - Beta 13 @@@ ROGUE MODE // 2024.05.24 @ 15:32:43 Player: Decinym Result: Destroyed by R6-HYC(R) with Subdweller Laser Performance ------------- Evolutions (0) 0 Regions Visited (3) 600 Robots Destroyed (35) 175 Value Destroyed (812) 812 Prototype IDs (0) 0 Alien Tech Used (0) 0 Bonus (50) 50 TOTAL SCORE: 1637 Bonus ------- High Alert Combat Kills 50 Cogmind --------- Core Integrity 0/250 Matter 292/300 Energy 250/250 System Corruption 0% Temperature Cool (6) Movement Treading (160) Location -10/Subcaves Parts ------- > --- POWER (1) -------- Ion Engine > --- PROPULSION (2) --- Light Treads Light Treads > --- UTILITY (2) ------ Scrap Shield > --- WEAPON (2) ------- Subdweller Machine Gun Subdweller Machine Gun > --- INVENTORY (5) ---- Light Treads High-capacity Storage Unit Power Bank Rainbow Chip Subdweller Shrapnel Launcher Peak State ------------ > --- POWER ------------ Ion Engine > --- PROPULSION ------- Light Treads Light Treads > --- UTILITY ---------- Scrap Shield > --- WEAPON ----------- Subdweller Laser Subdweller Beam Cannon > --- INVENTORY -------- Light Treads High-capacity Storage Unit Power Bank Rainbow Chip Subdweller Shrapnel Launcher [Rating: 13] Favorites ----------- Power Ion Engine Engine Ion Engine Propulsion Light Treads Treads Light Treads Leg Aluminum Leg Wheel Compact Wheel Utility Heat Sink Device Heat Sink Storage High-capacity Storage Unit Protection Scrap Shield Weapon EM Pulse Gun Energy Gun EM Pulse Gun Energy Cannon Subdweller Beam Cannon Ballistic Gun Light Assault Rifle Launcher Subdweller Shrapnel Launcher Build | -11 -10 -10 -10 ------- Run | Yrd Mat Min Sub Slots Evolved . | . . . . Power . | . . . . Propulsion . | . . . . Utility . | . . . . Weapon . | . . . . Parts Attached 22 | . 6 1 15 Power 3 | . 1 . 2 Engine 3 | . 1 . 2 Core . | . . . . Reactor . | . . . . Propulsion 5 | . 1 . 4 Treads 4 | . . . 4 Leg . | . . . . Wheel 1 | . 1 . . Hover . | . . . . Flight . | . . . . Utility 3 | . 2 . 1 Device 1 | . 1 . . Storage 1 | . 1 . . Processor . | . . . . Hackware . | . . . . Protection 1 | . . . 1 Artifact . | . . . . Weapon 11 | . 2 1 8 Energy Gun 5 | . 2 1 2 Energy Cannon 1 | . . . 1 Ballistic Gun 4 | . . . 4 Ballistic Cannon . | . . . . Launcher 1 | . . . 1 Special Weapon . | . . . . Impact Weapon . | . . . . Slashing Weapon . | . . . . Piercing Weapon . | . . . . Special Melee Weapon . | . . . . Unidentified Prototypes . | . . . . Parts Lost 7 | . 1 1 5 Power 1 | . . . 1 Propulsion 2 | . . . 2 Utility 1 | . . . 1 Weapon 3 | . 1 1 1 Highest Loss Streak 5 | . 1 1 5 To Critical Strikes . | . . . . Average Slot Usage (%) 92 | . 99 100 85 Engine 14 | . 14 14 14 Treads 13 | . . . 25 Leg 9 | . 21 14 . Wheel 4 | . 6 14 1 Device 6 | . 13 14 . Storage 7 | . 14 14 1 Protection 6 | . . . 12 Energy Gun 16 | . 28 28 6 Energy Cannon 2 | . . . 4 Ballistic Gun 7 | . . . 14 Launcher 1 | . . . 2 Naked Turns . | . . . . Heaviest Build 51 | 12 51 51 50 Greatest Support 40 | 20 20 16 40 Greatest Overweight (x) 3 | . 3 3 3 Average Overweight (x) . | . 1 3 . Largest Inventory Capacity 20 | . 20 20 20 Average Capacity 10 | . 13 20 6 Most Carried 14 | . 13 14 14 Average Carried 8 | . 9 13 5 Final Capacity 20 | 8 20 20 5 Final Carried 14 | 6 13 14 5 Class Distribution -------------------- 57% | Mutant 29% | Subdweller-Mutant 13% | Scavenger-Mutant Dominant Class ---------------- Mutant | -10/Materials Mutant | -10/Mines Subdweller-Mutant | -10/Subcaves Resources | -11 -10 -10 -10 ----------- Run | Yrd Mat Min Sub Matter Collected 526 | 193 59 10 264 Remotely . | . . . . Salvage Created 1000 | . 565 45 390 Parts 83 | . 43 7 33 Haulers Intercepted 1 | . 1 . . Recyclers Shooed . | . . . . Parts Field Recycled . | . . . . Retrieved Matter . | . . . . Parts Self-Destructed 22 | . . . 22 Prevented . | . . . . Kills | -11 -10 -10 -10 ------- Run | Yrd Mat Min Sub Combat Hostiles Destroyed 30 | . 13 3 14 Guns 26 | . 12 3 11 Cannons 1 | . . . 1 AOE 3 | . 1 . 2 Classes Destroyed 6 | . 4 . 2 Worker 4 | . 4 . . Hauler 1 | . 1 . . Swarmer 13 | . 6 3 4 Grunt 7 | . 7 . . Sentry 1 | . . . 1 Subdweller 9 | . . . 9 Best Kill Streak 5 | . 5 3 4 Combat Bots Only 5 | . 5 3 4 Max Kills in Single Turn 2 | . 1 2 1 Gunslinging 1 | . . 1 . Exploded 1 | . 1 . 1 Melee . | . . . . Uniques/NPCs Destroyed . | . . . . Combat | -11 -10 -10 -10 -------- Run | Yrd Mat Min Sub Hostile Shots Fired 156 | . 39 20 97 Missed 48 | . 8 7 33 Damage Taken 1567 | . 340 107 1120 Core 268 | . 55 38 175 Absorbed by Shields . | . . . . Core Remaining (%) 100 | 100 . . . Volleys Fired 93 | . 37 5 51 Largest 2 | . 2 2 2 Hottest 140 | . 105 105 140 Shots Fired 181 | . 74 10 97 Gun 170 | . 74 10 86 Cannon 7 | . . . 7 Launcher 4 | . . . 4 Special . | . . . . Kinetic 44 | . . . 44 Thermal 68 | . 7 8 53 Explosive . | . . . . Electromagnetic 69 | . 67 2 . Robot Hit Streak 24 | . 10 2 24 Robot Miss Streak 4 | . 4 2 3 Penetration Max . | . . . . Secondary Targets 4 | . 2 1 1 Max Gunslinging Chain 1 | . 1 1 1 Shots Hit Robots 121 | . 46 5 70 Core Hits 47 | . 21 3 23 Critical Kills . | . . . . Critical Parts Destroyed . | . . . . Critical Strikes 2 | . . . 2 Destroy 2 | . . . 2 Melee Attacks . | . . . . Impact . | . . . . Slashing . | . . . . Piercing . | . . . . Sneak Attacks . | . . . . Combat Hostiles . | . . . . Follow-up Attacks . | . . . . Damage Inflicted 2244 | . 800 72 1372 Guns 1653 | . 639 72 942 Cannons 107 | . . . 107 Explosions 483 | . 160 . 323 Melee . | . . . . Ramming 1 | . 1 . . Kinetic 726 | . . . 726 Thermal 932 | . 225 61 646 Explosive . | . . . . Electromagnetic 585 | . 574 11 . Impact . | . . . . Slashing . | . . . . Piercing . | . . . . Highest Corruption . | . . . . Average Corruption . | . . . . Corruption Purged . | . . . . Corruption Blocked . | . . . . Overload Shots . | . . . . Overflow Damage 76 | . 60 . 16 Projectiles . | . . . . Explosions 76 | . 60 . 16 Melee . | . . . . Knockbacks . | . . . . Impact . | . . . . Kinetic . | . . . . Secondary . | . . . . Self-Inflicted Damage 17 | . 17 . . Shots 1 | . 1 . . Rammed . | . . . . Targets Rammed 1 | . 1 . . Kicked 1 | . 1 . . Crushed . | . . . . Highest Temperature 150 | . 150 45 90 Average Temperature 39 | . 47 21 33 Received Heat Transfer 237 | . 66 . 171 Siege Activations . | . . . . Robots Corrupted . | . . . . Combat Hostiles . | . . . . Parts Fried . | . . . . Impact Corruptions . | . . . . Robots Melted . | . . . . Combat Hostiles . | . . . . Parts Melted 1 | . 1 . . Heat Transferred 1567 | . 348 149 1070 Parts Sabotaged . | . . . . Parts Stolen . | . . . . Parts Stripped . | . . . . Power Chain Reactions 2 | . 2 . . Alert | -11 -10 -10 -10 ------- Run | Yrd Mat Min Sub Peak Influence 895 | . 895 414 . Initial 354 | . . 354 . Average 566 | . 640 407 . Maximum Alert Level 3 | . 3 2 . Low Security (%) 7 | . 11 . . Level 1 5 | . 2 11 . Level 2 38 | . 15 88 . Level 3 47 | . 70 . . Level 4 . | . . . . Level 5 . | . . . . High Security . | . . . . Max Security . | . . . . Squads Dispatched 2 | . 2 . . Investigation 1 | . 1 . . Extermination . | . . . . Reinforcement 1 | . 1 . . Assault . | . . . . Garrison . | . . . . Intercept . | . . . . Searches Triggered . | . . . . Construction Impeded . | . . . . Haulers Reinforced . | . . . . Active Scanning Responses . | . . . . Cargo Convoy Interrupts . | . . . . Stealth | -11 -10 -10 -10 --------- Run | Yrd Mat Min Sub Distress Signals 3 | . 3 . . Communications Jammed . | . . . . Distress Signals . | . . . . Times Spotted 40 | . 20 3 17 Peak Tracking Total 6 | . 3 3 6 Tactical Retreats 1 | . . . 1 Traps | -11 -10 -10 -10 ------- Run | Yrd Mat Min Sub Traps Triggered 1 | . 1 . . Indirectly . | . . . . Trap Hack Attempts . | . . . . Triggered . | . . . . Disarmed . | . . . . Reprogrammed . | . . . . Reused . | . . . . Traps Extracted . | . . . . Installed . | . . . . Triggered . | . . . . Machines | -11 -10 -10 -10 ---------- Run | Yrd Mat Min Sub Machines Disabled 3 | . 2 . 1 Max in Single Turn 1 | . 1 . 1 Machines Repaired . | . . . . Machines Dismantled . | . . . . Machines Sabotaged . | . . . . Overloaded Fab Kills . | . . . . Hacking | -11 -10 -10 -10 --------- Run | Yrd Mat Min Sub Machines Accessed 1 | . 1 . . Terminals 1 | . 1 . . Fabricators . | . . . . Repair Stations . | . . . . Recycling Units . | . . . . Scanalyzers . | . . . . Garrison Access . | . . . . Total Hacks 1 | . 1 . . Successful . | . . . . Failed 1 | . 1 . . Catastrophic . | . . . . Database Lockouts . | . . . . Manual 1 | . 1 . . Terminals 1 | . 1 . . Fabricators . | . . . . Repair Stations . | . . . . Recycling Units . | . . . . Scanalyzers . | . . . . Garrison Access . | . . . . Terminal Hacks . | . . . . Fabricator Hacks . | . . . . Repair Station Hacks . | . . . . Recycling Unit Hacks . | . . . . Scanalyzer . | . . . . Garrison Access Hacks . | . . . . Unauthorized Hacks . | . . . . Terminals . | . . . . Fabricators . | . . . . Repair Stations . | . . . . Recycling Units . | . . . . Scanalyzers . | . . . . Garrison Access . | . . . . Data Cores Recovered . | . . . . Used . | . . . . Hacking Detections 1 | . 1 . . Full Trace Events . | . . . . Feedback Events . | . . . . Feedback Blocked . | . . . . Robot Schematics Acquired . | . . . . Robots Built . | . . . . Authchips . | . . . . Time . | . . . . Total Robot Build Rating . | . . . . Part Schematics Acquired . | . . . . Parts Built . | . . . . Authchips . | . . . . Time . | . . . . Total Part Build Rating . | . . . . Parts Repaired . | . . . . Time . | . . . . Parts Recycled . | . . . . Recycled Matter . | . . . . Retrieved Matter . | . . . . Retrieved Components . | . . . . Parts Scanalyzed . | . . . . Part Schematics Acquired . | . . . . Parts Damaged . | . . . . Bothacking | -11 -10 -10 -10 ------------ Run | Yrd Mat Min Sub Used RIF Installer . | . . . . Robots Hacked . | . . . . Non-combat . | . . . . Combat . | . . . . Robot Hacks Applied . | . . . . Relay Couplers Released . | . . . . Fabnet Peak Effective % . | . . . . Robots Rewired . | . . . . Allies Hacked . | . . . . Hacks Repelled . | . . . . Allies | -11 -10 -10 -10 -------- Run | Yrd Mat Min Sub Total Allies . | . . . . Largest Group . | . . . . Highest-Rated Group . | . . . . Highest-Rated Ally . | . . . . Total Orders . | . . . . Ally Attacks . | . . . . Total Damage . | . . . . Kills . | . . . . Allies Corrupted . | . . . . Allies Melted . | . . . . Intel | -11 -10 -10 -10 ------- Run | Yrd Mat Min Sub Robot Analysis Total . | . . . . Derelict Logs Recovered 2 | . . . 2 Drone Launches . | . . . . Drone Recoveries . | . . . . Exploration | -11 -10 -10 -10 ------------- Run | Yrd Mat Min Sub Turns Passed 2270 | . 740 341 1189 Spaces Moved 1131 | 1 459 56 615 Core . | . . . . Treads 581 | . . . 581 Legs 247 | 1 246 . . Wheels 303 | . 213 56 34 Hover . | . . . . Flight . | . . . . Fastest Speed 120 | 120 120 145 145 Average Speed 147 | 120 131 145 160 Slowest Speed 240 | 120 145 145 240 Overloaded Moves . | . . . . Propulsion Burnouts . | . . . . Robots Hopped . | . . . . Cave-ins Triggered . | . . . . Exploration Rate (%) 35 | 2 89 13 36 Regions Visited 3 Branch Regions 2 Pre-discovered Areas . | . . . . Known Exits Taken . | . . . . Unknown Exits Taken 3 | 1 1 1 . Scrap Searched . | . . . . Spaces Dug . | . . . . Terrain Destroyed 38 | . 3 . 35 Melee . | . . . . Projectile 1 | . . . 1 AOE 37 | . 3 . 34 Terrain Rammed . | . . . . Walls Destroyed . | . . . . Machines Disabled . | . . . . Actions | -11 -10 -10 -10 --------- Run | Yrd Mat Min Sub Total 1558 | . 521 306 731 Wait 272 | . 7 243 22 Move 1128 | . 458 55 615 Hop . | . . . . Pick Up 13 | . 9 2 2 Fast Attach 9 | . 1 . 8 Attach 8 | . 3 1 4 Detach 2 | . . . 2 Swap 5 | . 2 . 3 Drop 18 | . 3 . 15 Fire 93 | . 37 5 51 Melee . | . . . . Ram . | . . . . Kick 1 | . 1 . . Crush . | . . . . Escape Stasis . | . . . . Rewire . | . . . . Trap . | . . . . Miscellaneous 9 | . . . 9 Route ------- -11/Scrapyard -10/Materials (discovered 4 exits: [*Mat x2] / [*Min x2]) -10/Mines -10/Subcaves History --------- Turn | Location | Event 1 | -11/Scrapyard | Discovered new exit (range 0) 1 | -11/Scrapyard | Entered Materials 120 | -10/Materials | Discovered new exit (range 11) 315 | -10/Materials | Build established: Mutant 354 | -10/Materials | Discovered new exit (range 6) 527 | -10/Materials | Discovered new exit (range 16) 621 | -10/Materials | Discovered new exit (range 10) 741 | -10/Materials | Entered Mines 1058 | -10/Mines | Discovered new exit (range 5) 1082 | -10/Mines | Entered Subcaves 1132 | -10/Subcaves | A Subdweller sparked back to life 1141 | -10/Subcaves | Core integrity fell below 50% 1147 | -10/Subcaves | Core integrity fell below 20% 1197 | -10/Subcaves | Found Prototype Device 1211 | -10/Subcaves | Lost 5 parts (1p2n1u1w) 1443 | -10/Subcaves | Build established: Scavenger-Mutant 1497 | -10/Subcaves | A swath of the cavern ceiling suddenly collapsed 1526 | -10/Subcaves | Learned Materials terminal intel 1567 | -10/Subcaves | Learned Materials stockpile data 1711 | -10/Subcaves | Visited 4L-MR0's lab 1728 | -10/Subcaves | Found Prototype Processor 1903 | -10/Subcaves | Build established: Subdweller-Mutant 2203 | -10/Subcaves | Shifting Twisted Machinery released Mak. Flight Unit 2271 | -10/Subcaves | Destroyed by R6-HYC(R) with Subdweller Laser Last Messages --------------- 01970_ Heat Sink fries itself beyond repair. 01979_ Lgt. Armor Plating fries itself beyond repair. 02029_ Subatomizers dissect the Sub. Power Source. 02039_ Dropped Broken Sub. Beam Cannon. 02039_ Acquired Sub. Laser. 02043_ Subatomizers dissect the Sub. Power Source. 02073_ Acquired 10 matter. 02118_ Critical hit (Destroy). 02125_ KS-BHJ(R) suffers critical hit (Destroy). 02125_ Destroyed Scrap Shield. 02131_ KS-BHJ(R) destroyed. 02138_ Acquired 18 matter. 02142_ Scrap Shield Fragment affixed to Scrap Shield (+45). 02142_ G-47 Trooper suffers critical hit (Destroy). 02158_ WT-MS2(R) destroyed. 02168_ Acquired 6 matter. 02171_ Dropped Sub. Laser. 02171_ Acquired Sub. Machine Gun. 02173_ Acquired 10 matter. Mak. Flight Unit falls loose from the Twisted Machinery. Map ----- +----------------------------------------------------+ | ??????????????????????????????????????????????? | | ??????????????????????????????????????????????? | | ??????????????????????????????????????????????? | | ??????????????????????????????????????????????? | | ??????????????????????????????????????????????? | | ??????????????????????????????????????????????? | | ??????????????????????????????????????????????? | | ???????????????####???????????????????????????? | | ??????????????## # #????????????????????????? | | ??????????????# #######?????????????????? | | ?????????????## ? " ""#?????????????????? | | ?????????????# ??""" "#?????????????????? | | ??????????????# ##??#""= ##????????????????? | | ?????????????## ##### ## ###??????????????? | | ?????????????# # ## ## ""##?????????????? | | ??????????????# """#?????????????? | | ??????????????# """#?????????????? | | ????????#######% #### #?????????????? | | ??####### #??### # ##?????????????? | | ???"" ##????## ####??????????????? | | ??"" ## # ##????# #?????????????????? | | ?" ??## #????# ##????????????????? | | ????????## #???# #????????????????? | | ??###???# ## #??## #????????????????? | | #?# ##??# #### ##??# ##????????????????? | | ### ##?# #??# #??#@ ##????????????????? | | ## #?# #??# #??##R #????????????????? | | ### #?## #??# #????????????????? | | ==%/ #### #??# ##????????????????? | | !% ##### #### ##????????????????? | | [#### """ #????????????????? | | #####?# """" #????????????????? | | ######??????#### " """"##????????????????? | | #??????????????## " " """"#?????????????????? | | ????????????????## " #????????????????? | | ?????????????????# ## #???????????????? | | ?????????????????# ?## #???????????????? | | ????????????????# ??## #???????????????? | | ???????????????# ????# #???????????????? | | ???????????????# ?????# #???????????????? | | ???????????????# """ ??????##???????????????? | | ???????????????# " ##???????????????????????? | | ???????????????? ""?????????????????????????? | | ???????????????????? ?????????????????????????? | | ??????????????????????????????????????????????? | | ??????????????????????????????????????????????? | | ??????????????????????????????????????????????? | | ??????????????????????????????????????????????? | | ??????????????????????????????????????????????? | | ??????????????????????????????????????????????? | +----------------------------------------------------+ Best States ------------- Heat Dissipation 35 Energy Generation 10 Energy Capacity 250 Matter Stores 300 Matter Capacity 300 Sight Range 16 Terrain Scan Density 10 Armor Coverage 800 Evasion (%) 55 Recoil Reduction 2 Item Schematics ----------------- None Robot Schematics ------------------ None Fabricated ------------ Nothing Alien Tech Used ----------------- None Achievements -------------- None Challenges ------------ None Game ------ Seed EtherialCatalystFlightbrick Manual? 0 Play Time 00:11:40 Cumulative 395.6 hours Start 2024.05.24 @ 15:20:53 End 2024.05.24 @ 15:32:43 Sessions 1 Manual Loads 0 Difficulty Rogue Special Mode None Game No. 404 Rogue 404 Adventurer 0 Explorer 0 Win Type - Total 30 Types 16/3/5/1/2/0/3/0/0 Lore% 89 Gallery% 89 Achievement% 82 Wizard Run 0 Options --------- Layout 0 ASCII 0 Keyboard 0 Movement Arrows Keybinds 0 Fullscreen 2 Font 24/Smallcaps Map View 76x50 Zoom Use 0% Tactical HUD 1 Map Filters NONE Filters NONE Steam 1 RUN: d5374aca-f518-469d-951b-539c8369d924